bitfinex/quotes_ETHUSD_20240618
["timestamp","ask_amount","ask_price","bid_price","bid_amount"]
[1718725154293,0.66402999,3423.1,3422.0,0.4543213]
[1718725154604,0.04108659,3423.0,3422.0,0.4543213]
[1718725155528,0.04108659,3423.0,3422.0,3.3765713]
[1718725155724,0.66402999,3423.1,3422.0,0.4543213]
[1718725157183,0.66402999,3423.1,3422.0,3.3765813]
[1718725157522,0.66402999,3423.1,3422.0,0.4543213]
[1718725157818,0.31766546,3423.0,3422.0,0.4543213]
[1718725158186,0.31766546,3423.0,3421.8,1.620883]
[1718725158383,0.0482,3422.9,3421.7,5.92251]
[1718725158589,0.08928659,3422.9,3421.7,5.92251]
[1718725158924,0.0482,3422.9,3421.7,5.92251]
[1718725159096,0.0482,3422.9,3422.0,2.92221]
[1718725159305,0.04106419,3422.8,3421.9,2.92234]
[1718725160021,0.04106419,3422.8,3422.0,2.92224]
[1718725160622,0.04106419,3422.8,3422.2,2.92209]
[1718725160787,0.04106419,3422.8,3422.3,0.292209]
[1718725161213,0.04106419,3422.8,3422.4,2.92192]
[1718725161623,0.0482,3422.9,3422.4,2.92192]
[1718725162208,0.0482,3422.9,3422.3,3.214199]
[1718725162557,0.0482,3422.9,3422.3,0.292209]
[1718725163020,0.0482,3422.9,3421.4,7.1797]
[1718725163021,0.04105669,3422.8,3421.4,7.1797]
[1718725163222,0.0482,3422.7,3421.2,2.92288]
[1718725163526,0.04100437,3422.6,3421.5,2.92262]
[1718725163820,0.0482,3422.7,3421.5,2.92262]
[1718725164023,0.0482,3422.7,3421.4,2.92277]
[1718725164227,0.04078005,3422.6,3421.4,2.92277]
[1718725164394,0.04078005,3422.6,3421.4,3.895724]
[1718725164598,0.0482,3422.7,3421.5,2.92266]
[1718725165126,0.04078005,3422.6,3421.5,2.92266]
[1718725165329,0.0482,3422.7,3421.5,2.92266]
[1718725165330,0.0482,3422.7,3421.5,2.92268]
[1718725165548,0.04078005,3422.6,3421.5,2.92267]
[1718725165829,0.04078005,3422.6,3421.6,1.2795044]
[1718725166037,0.0482,3422.7,3421.6,1.2795044]
[1718725166451,0.03942072,3422.6,3421.6,1.2795044]
[1718725166946,0.0482,3422.7,3421.6,1.2795044]
[1718725167261,0.03893646,3422.6,3421.6,1.2795044]
[1718725167547,0.0482,3422.7,3421.6,4.2021044]
[1718725168139,0.03893646,3422.6,3421.6,4.2021044]
[1718725168328,0.0482,3422.7,3421.6,4.2021044]
[1718725168531,0.03893646,3422.6,3421.6,4.2021044]
[1718725168735,0.0482,3422.7,3421.6,1.2795044]
[1718725168940,0.03893646,3422.6,3421.6,1.2795044]
[1718725169146,0.0482,3422.7,3421.6,1.2795044]
[1718725169344,0.0482,3422.7,3421.6,4.2020844]
[1718725169669,0.03893646,3422.6,3421.6,4.2020844]
[1718725169944,0.03893646,3422.6,3421.5,2.92268]
[1718725169945,0.0482,3422.7,3421.8,2.92243]
[1718725170151,0.0482,3422.7,3421.9,2.92232]
[1718725170315,0.0374467,3422.6,3421.8,2.92241]
[1718725170515,0.0482,3422.7,3421.9,2.92235]
[1718725170821,0.0374467,3422.6,3421.9,2.92235]
[1718725171215,0.0482,3422.7,3421.9,2.92235]
[1718725171516,0.0374467,3422.6,3421.9,2.92235]
[1718725171738,0.0482,3422.7,3421.9,2.92235]
[1718725171932,0.0374467,3422.6,3421.9,2.92235]
[1718725172215,0.0482,3422.7,3421.8,0.97865888]
[1718725172413,0.0482,3422.7,3421.1,2.923]
[1718725172657,0.0482,3422.5,3421.0,2.92305]
[1718725172827,0.0482,3422.5,3421.1,3.0]
[1718725173217,0.0374467,3422.4,3421.2,2.92293]
[1718725173562,0.0482,3422.3,3421.1,5.092]
[1718725173764,0.0482,3422.3,3421.2,0.3]
[1718725173926,0.0482,3422.3,3421.3,2.92285]
[1718725174128,0.0374467,3422.2,3421.2,2.92292]
[1718725174462,0.0482,3422.3,3421.2,2.92292]
[1718725174825,0.0482,3422.3,3421.0,2.92309]
[1718725175147,3.0,3422.0,3420.6,5.92344]
[1718725175347,3.0,3422.0,3420.6,6.39583449]
[1718725175534,3.0,3422.0,3420.7,2.92337]
[1718725175740,3.0,3422.0,3420.6,3.47239449]
[1718725176060,3.0,3422.0,3420.7,2.92337]
[1718725176263,3.0,3422.0,3420.5,2.92346]
[1718725176264,0.0482,3421.8,3420.5,2.92346]
[1718725176954,0.03727823,3421.7,3420.5,2.92346]
[1718725177256,0.0482,3421.8,3420.4,2.92361]
[1718725177571,0.0371809,3421.7,3420.5,3.0]
[1718725177726,0.3720009,3421.7,3420.6,3.808152]
[1718725177933,0.0482,3421.8,3420.8,2.92321]
[1718725178143,0.0482,3421.8,3420.6,2.976732]
[1718725178144,0.0371809,3421.7,3420.7,2.92335]
[1718725178364,0.0482,3421.8,3420.7,0.8900082]
[1718725178580,0.0482,3421.8,3420.7,3.8133782]
[1718725178779,0.03704606,3421.7,3420.7,3.8133782]
[1718725179157,0.0482,3421.8,3420.7,3.8133782]
[1718725179692,0.03704606,3421.7,3420.7,3.8133782]
[1718725179890,0.0482,3421.8,3420.8,1.18289082]
[1718725180065,0.03710973,3421.7,3420.8,1.18289082]
[1718725181099,0.03710973,3421.7,3420.9,2.92317]
[1718725181280,0.03710973,3421.7,3421.1,2.92295]
[1718725181486,0.0482,3422.3,3421.5,2.92264]
[1718725181686,0.03710973,3422.2,3421.7,2.92252]
[1718725181867,0.0482,3422.3,3421.5,2.092]
[1718725182057,0.0372258,3422.2,3421.6,0.501476]
[1718725182388,0.0482,3422.3,3421.6,3.424066]
[1718725182887,0.0372258,3422.2,3421.6,0.501476]
[1718725183069,0.0482,3422.3,3421.7,0.8438926]
[1718725183253,0.03736433,3422.2,3421.7,0.8438926]
[1718725183459,0.0482,3422.3,3421.7,0.8438926]
[1718725183685,0.03736433,3422.2,3421.0,0.70293808]
[1718725183874,7.34089444,3422.9,3421.1,2.92301]
[1718725183875,3.0,3422.8,3421.1,2.92301]
[1718725184074,3.0,3422.8,3421.2,3.88552481]
[1718725184075,5.16138423,3422.7,3421.2,3.88552481]
[1718725184274,5.67526538,3422.6,3421.2,0.96259481]
[1718725184489,2.12526538,3422.5,3421.0,6.62598808]
[1718725184666,0.03611885,3422.4,3421.0,6.62598808]
[1718725184868,2.12526538,3422.3,3421.1,1.16411281]
[1718725185070,2.12526538,3422.3,3421.1,4.08713281]
[1718725185269,2.16138423,3422.2,3421.1,4.08713281]
[1718725185489,2.12526538,3422.1,3421.1,4.08713281]
[1718725185856,0.03611885,3422.0,3421.1,4.08713281]
[1718725186159,3.55,3422.6,3421.2,1.00101828]
[1718725186359,0.03611885,3421.9,3421.2,1.00101828]
[1718725186568,3.0,3422.6,3421.2,1.00101828]
[1718725186770,3.0,3422.6,3421.3,7.69010683]
[1718725186771,0.03611885,3421.8,3421.3,7.69010683]
[1718725186967,3.0,3422.6,3421.3,7.69010683]
[1718725186968,3.0,3422.6,3421.4,2.92275]
[1718725187160,2.12526389,3422.5,3421.5,2.92266]
[1718725187360,0.03611885,3422.4,3421.6,1.35355168]
[1718725187578,2.12526389,3422.3,3421.6,1.35355168]
[1718725188085,0.03611885,3422.2,3421.6,1.35355168]
[1718725188295,0.03611885,3422.2,3421.6,4.27613168]
[1718725188506,3.0,3422.6,3421.6,1.35355168]
[1718725188699,2.16125298,3422.5,3421.6,1.35355168]
[1718725188998,2.12513413,3422.4,3421.5,2.92267]
[1718725189499,0.03611885,3422.3,3421.5,2.92267]
[1718725189665,2.12513413,3422.2,3421.5,2.92267]
[1718725190097,0.03596537,3422.1,3421.5,2.92267]
[1718725190269,1.51910453,3422.4,3421.6,0.65379068]
[1718725190465,2.16121262,3422.3,3421.6,0.65379068]
[1718725190790,2.16121262,3422.3,3422.2,2.92209]
[1718725190791,0.03596537,3422.3,3422.2,2.92209]
[1718725190991,0.03596537,3422.3,3422.1,2.92215]
[1718725191165,7.34089444,3422.9,3422.0,2.92225]
[1718725191504,2.12485551,3422.8,3422.0,3.75169591]
[1718725191704,2.12485551,3422.8,3422.1,2.92215]
[1718725191910,0.03594665,3422.7,3422.2,0.66738459]
[1718725192213,2.12485551,3422.6,3422.2,0.66738459]
[1718725193019,7.34089444,3422.9,3422.4,2.92192]
[1718725193020,0.03594665,3422.5,3422.4,2.92192]
[1718725193170,0.03594665,3422.5,3422.4,5.84384]
[1718725193366,7.34089444,3422.9,3422.5,2.92175]
[1718725193584,7.34089444,3422.9,3422.5,2.92181]
[1718725194490,7.34089444,3422.9,3422.4,3.56345606]
[1718725194692,7.34089444,3422.9,3422.5,2.92181]
[1718725194880,7.34089444,3422.9,3422.6,0.64852661]
[1718725195888,1.51910453,3423.0,3422.6,0.64852661]
[1718725197518,2.12460837,3422.9,3422.6,0.64852661]
[1718725198339,1.51910453,3423.1,3422.6,0.64852661]
[1718725198539,1.51910453,3423.4,3422.8,2.92151]
[1718725198817,3.64354742,3423.3,3422.8,2.92151]
[1718725199117,1.51910453,3423.4,3422.9,0.75882989]
[1718725199281,2.12439087,3423.3,3422.9,0.75882989]
[1718725199483,7.34089444,3423.5,3422.9,3.68025989]
[1718725199687,7.34089444,3423.5,3423.0,3.69123922]
[1718725200629,7.34089444,3423.5,3423.0,0.76983922]
[1718725200812,8.85999897,3423.5,3423.0,0.76983922]
[1718725201004,8.85999897,3423.5,3422.8,2.92154]
[1718725201005,7.34089444,3423.5,3422.9,2.92149]
[1718725201190,7.34089444,3423.5,3422.9,2.92146]
[1718725201385,2.12674634,3424.2,3422.7,1.09662227]
[1718725201386,1.51910453,3423.8,3423.3,2.092]
[1718725201716,7.34089444,3424.1,3423.9,2.92063]
[1718725201921,2.12402332,3424.0,3423.8,2.92072]
[1718725202087,7.34089444,3424.1,3423.8,3.504881]
[1718725202491,7.34089444,3424.1,3423.8,0.584161]
[1718725203529,7.34089444,3424.1,3422.7,11.45102227]
[1718725203722,7.34089444,3424.1,3422.7,7.4328]
[1718725203723,1.5282411,3423.9,3422.7,7.4328]
[1718725203932,7.34089444,3424.1,3422.7,7.4328]
[1718725203933,3.68579463,3423.8,3422.8,5.01355]
[1718725204140,2.12405877,3423.7,3422.9,1.244635]
[1718725204312,0.03368606,3423.6,3422.7,10.35445]
[1718725204511,1.5282411,3423.8,3422.7,10.35445]
[1718725204716,2.15801755,3423.7,3422.8,1.53682]
[1718725205043,2.12433149,3423.6,3422.8,1.53682]
[1718725205422,0.03358104,3423.5,3422.8,4.45837]
[1718725205745,1.5282411,3423.8,3422.9,4.611887]
[1718725206049,0.03358104,3423.7,3423.5,2.92097]
[1718725206207,0.03358104,3423.7,3423.6,5.8418]
[1718725206520,7.34089444,3424.1,3423.6,5.8418]
[1718725206521,7.34089444,3424.1,3423.8,2.92065]
[1718725206713,1.52681756,3424.8,3423.7,2.92077]
[1718725206714,8.867712,3424.8,3423.9,2.92063]
[1718725206912,0.03237157,3424.0,3423.9,2.92063]
[1718725207146,8.867712,3424.8,3423.9,2.92063]
[1718725207344,0.03237157,3424.7,3424.2,2.92038]
[1718725207503,0.03237157,3424.7,3424.4,2.92014]
[1718725207702,7.34089444,3425.3,3424.5,3.504173]
[1718725207917,0.03270942,3425.2,3424.5,2.92013]
[1718725208138,0.03270942,3425.2,3423.9,3.6876957]
[1718725208341,0.03270942,3425.2,3423.6,5.92082]
[1718725208342,0.03270942,3425.2,3424.1,2.92047]
[1718725208867,0.03270942,3425.2,3424.2,2.92037]
[1718725209045,0.03270942,3425.2,3424.0,2.92054]
[1718725209569,0.03270942,3425.2,3424.1,2.92045]
[1718725209731,0.03270942,3425.2,3424.2,3.504479]
[1718725209938,0.03270942,3425.2,3424.4,2.92021]
[1718725210239,0.03270942,3425.2,3424.3,2.92028]
[1718725210751,0.03270942,3425.2,3424.5,2.92013]
[1718725210952,0.03270942,3425.2,3424.6,2.91996]
[1718725211139,0.03270942,3425.2,3424.6,2.92003]
[1718725211342,7.34089444,3425.7,3424.6,2.92003]
[1718725211544,0.03161911,3425.6,3424.4,2.92014]
[1718725211745,0.03161911,3425.6,3424.2,3.212356]
[1718725211942,0.03161911,3425.6,3424.5,2.92013]
[1718725212358,0.03161911,3425.6,3424.6,2.92003]
[1718725212545,0.03161911,3425.6,3424.7,2.91988]
[1718725213666,0.03161911,3425.6,3424.5,2.92012]
[1718725213865,0.03161911,3425.6,3424.3,1.0702316]
[1718725214268,0.03161911,3425.6,3424.3,3.9904416]
[1718725214437,0.03161911,3425.6,3424.3,1.0702316]
[1718725214843,0.03161911,3425.6,3424.2,3.212406]
[1718725215178,0.03191178,3425.5,3424.4,2.9202]
[1718725215338,0.03191178,3425.5,3424.6,2.92003]
[1718725215667,0.03191178,3425.5,3424.5,0.03621526]
[1718725215668,3.55,3425.9,3424.5,2.92013]
[1718725215865,0.03190803,3425.4,3424.6,0.29564153]
[1718725216066,3.55,3425.9,3424.6,0.29564153]
[1718725216277,0.03190803,3425.3,3424.6,0.29564153]
[1718725216478,3.55,3425.9,3424.3,6.9392]
[1718725216664,0.03188928,3425.2,3424.3,9.85949]
[1718725216849,7.34089444,3425.7,3424.3,9.85949]
[1718725217175,0.03188928,3425.6,3424.4,4.2273936]
[1718725217359,0.03188928,3425.6,3424.4,1.3071936]
[1718725217545,0.03188928,3425.6,3424.7,2.91996]
[1718725217746,0.03188928,3425.6,3424.8,0.291996]
[1718725218654,0.03188928,3425.6,3424.6,2.92004]
[1718725219065,7.34089444,3425.7,3424.6,2.92004]
[1718725219244,7.34089444,3425.7,3424.4,1.3071936]
[1718725219750,0.03021923,3425.6,3424.6,2.92002]
[1718725219951,7.34089444,3425.7,3424.7,0.77313656]
[1718725220190,0.03021923,3425.6,3424.8,2.97824915]
[1718725220482,3.0,3426.0,3424.8,2.97824915]
[1718725220985,0.03021923,3425.9,3424.8,2.97824915]
[1718725221180,0.03021923,3425.9,3424.9,0.66129515]
[1718725221367,0.03021923,3425.9,3424.9,0.71968427]
[1718725221685,0.03021923,3425.9,3425.1,2.91962]
[1718725221886,0.03021923,3425.9,3425.2,0.0583837]
[1718725222212,0.03021546,3425.8,3425.5,2.91921]
[1718725222355,0.03021546,3425.8,3425.6,2.91917]
[1718725222553,0.03021546,3425.8,3425.1,1.08696952]
[1718725222554,7.34089444,3426.5,3425.3,2.91936]
[1718725222780,0.030358,3426.4,3425.5,2.91927]
[1718725222977,0.030358,3426.4,3425.2,1.11289647]
[1718725222978,7.34089444,3427.1,3426.0,2.91884]
[1718725223182,3.0,3427.5,3426.0,2.91884]
[1718725224106,3.0,3427.5,3426.1,0.05738803]
[1718725224107,0.33572635,3427.4,3426.1,0.05738803]
[1718725224303,0.33572635,3427.4,3426.4,2.91851]
[1718725224501,0.33572635,3427.4,3426.1,0.05738803]
[1718725224502,0.030358,3427.4,3426.5,0.31116127]
[1718725224706,0.030358,3427.4,3426.6,2.93765315]
[1718725224871,7.34089444,3427.7,3426.5,9.97122]
[1718725225202,0.02958006,3427.6,3426.5,7.0528]
[1718725225388,0.02958006,3427.6,3426.5,9.97122]
[1718725226003,0.02958006,3427.6,3426.5,7.0528]
[1718725226179,0.02958006,3427.6,3426.5,9.97122]
[1718725226386,2.092,3428.1,3426.6,1.288981]
[1718725226706,0.33519884,3428.0,3426.6,1.288981]
[1718725228185,0.33519884,3428.0,3426.6,4.207311]
[1718725228402,0.33519884,3428.0,3426.9,2.91806]
[1718725228702,0.0298949,3428.0,3426.9,2.91806]
[1718725229004,3.0,3428.3,3427.0,0.583631]
[1718725229306,0.03058471,3428.2,3427.0,2.91799]
[1718725229504,0.03058471,3428.2,3427.1,2.91788]
[1718725229871,0.03058471,3428.2,3426.7,2.9182]
[1718725230069,0.63358658,3428.1,3426.7,1.3352101]
[1718725230301,2.72558658,3428.1,3426.7,1.3352101]
[1718725230482,2.72558658,3428.1,3426.1,6.9744]
[1718725230483,6.58071585,3428.0,3426.3,2.91857]
[1718725230808,6.58071585,3428.0,3426.5,2.91841]
[1718725231882,0.34810887,3427.9,3426.3,1.289312]
[1718725232210,0.06414109,3427.8,3426.3,1.289312]
[1718725232777,2.642,3427.7,3426.3,1.289312]
[1718725232979,3.06407365,3427.6,3425.9,2.91893]
[1718725233190,3.06407365,3427.6,3426.1,2.91874]
[1718725233191,0.55,3427.5,3426.1,2.91874]
[1718725233401,0.06400247,3427.4,3426.2,0.60465895]
[1718725233723,0.06400247,3427.4,3426.2,0.58565182]
[1718725233920,0.55,3427.3,3425.6,2.91916]
[1718725234430,0.06400247,3427.2,3425.5,5.01119]
[1718725234598,0.06400247,3427.2,3425.7,2.91902]
[1718725236389,0.55,3427.3,3425.6,1.61711577]
[1718725236594,3.0,3427.2,3425.6,1.61711577]
[1718725236812,3.0,3427.2,3425.3,7.1085]
[1718725236813,3.06400247,3427.1,3425.4,2.91936]
[1718725237215,3.0,3427.1,3425.4,2.91936]
[1718725237519,3.0,3426.8,3425.5,1.294738]
[1718725237720,3.0,3426.8,3424.9,10.10869]
[1718725237921,2.092,3426.5,3425.0,2.91963]
[1718725238136,0.57056277,3426.4,3425.1,0.583941]
[1718725238288,3.57056277,3426.4,3425.1,0.583941]
[1718725238487,0.06362771,3426.3,3425.1,0.583941]
[1718725238733,0.06362771,3426.3,3424.4,9.4959]
[1718725238734,0.06362771,3426.3,3424.6,2.92003]
[1718725238905,0.06362771,3426.3,3424.7,2.91994]
[1718725239503,0.36906578,3426.3,3424.7,2.91994]
[1718725239711,0.36906578,3426.3,3424.8,2.91986]
[1718725240106,0.36906578,3426.3,3424.9,0.01686501]
[1718725240723,0.36906578,3426.3,3424.7,2.91994]
[1718725241225,0.36906578,3426.3,3424.5,4.16971]
[1718725241428,0.36906578,3426.3,3424.7,2.91989]
[1718725241628,0.36906578,3426.3,3425.2,2.91953]
[1718725241830,0.36906578,3426.3,3425.1,2.91961]
[1718725242137,0.36906578,3426.3,3424.8,4.220774]
[1718725242138,0.06362771,3426.3,3424.8,4.220774]
[1718725242296,0.06362771,3426.3,3424.8,2.91979]
[1718725242647,0.06320415,3426.2,3424.7,5.01195]
[1718725242962,0.06320415,3426.2,3424.8,0.626154]
[1718725243447,3.0,3426.3,3424.8,0.626154]
[1718725243448,0.06320415,3426.1,3424.9,2.91977]
[1718725243602,0.06320415,3426.1,3424.8,3.546014]
[1718725243803,0.06320415,3426.1,3424.9,0.5637964]
[1718725244152,0.06320415,3426.1,3424.8,0.626154]
[1718725245022,2.092,3425.8,3423.9,7.2613]
[1718725245205,2.12332051,3425.7,3423.9,7.2613]
[1718725245403,0.06316665,3425.6,3424.1,2.92045]
[1718725245639,0.06316665,3425.6,3424.2,1.310238]
[1718725245845,2.12349902,3425.5,3424.2,1.310238]
[1718725246458,0.06316665,3425.4,3424.2,1.310238]
[1718725246665,0.06316665,3425.4,3424.3,0.4230698]
[1718725246960,3.0,3425.8,3424.3,0.4230698]
[1718725247163,0.06285165,3425.3,3424.3,0.4230698]
[1718725247522,3.0,3425.8,3424.4,2.9202]
[1718725247710,0.06285165,3425.2,3424.4,2.9202]
[1718725247952,3.0,3425.8,3424.5,0.75738778]
[1718725248162,3.0,3425.8,3424.3,0.4230698]
[1718725248163,2.12338953,3425.7,3424.3,0.4230698]
[1718725248309,0.06285165,3425.7,3424.3,3.3433298]
[1718725248511,0.06285165,3425.7,3424.5,2.92005]
[1718725248813,0.06285165,3425.7,3424.7,2.91994]
[1718725248974,0.06285165,3425.7,3424.8,2.092]
[1718725249123,7.34089444,3426.3,3424.8,2.092]
[1718725249466,7.34089444,3426.3,3425.1,2.91955]
[1718725249672,7.34089444,3426.3,3424.7,9.72459]
[1718725249673,0.06081663,3426.2,3424.7,9.72459]
[1718725249866,0.06081663,3426.2,3424.8,3.892324]
[1718725250217,3.06081663,3426.2,3424.8,0.972464]
[1718725250461,3.06081663,3426.2,3424.6,2.91996]
[1718725250759,2.1230643,3426.1,3424.7,3.0]
[1718725250956,2.1230643,3426.1,3424.8,3.511796]
[1718725251160,0.06098163,3426.0,3424.8,2.91979]
[1718725251379,0.06098163,3426.0,3424.9,2.91976]
[1718725251678,0.06098163,3426.0,3424.7,5.91995]
[1718725251679,0.06098163,3426.0,3425.0,3.803641]
[1718725252544,0.06098163,3426.0,3425.2,2.91953]
[1718725252729,0.06098163,3426.0,3425.1,2.91961]
[1718725252929,3.0,3426.2,3425.1,2.91961]
[1718725253127,0.06100786,3425.9,3425.2,0.6723251]
[1718725253332,3.0,3426.5,3425.2,0.6723251]
[1718725253631,2.67289791,3426.4,3425.2,0.6723251]
[1718725253832,5.18390577,3426.3,3425.2,0.6723251]
[1718725254035,5.18390577,3426.3,3425.3,3.65900761]
[1718725254036,3.0,3426.2,3425.3,3.65900761]
[1718725254235,1.51500955,3426.7,3425.5,2.91927]
[1718725254438,2.18376547,3426.6,3425.8,2.91901]
[1718725254667,0.06102661,3426.6,3425.6,0.29776499]
[1718725254967,0.06102661,3426.6,3425.7,0.5309035]
[1718725255169,3.0,3426.9,3425.8,0.05177104]
[1718725255459,2.12261995,3426.8,3425.8,2.97078104]
[1718725255643,2.1837478,3426.8,3425.5,2.91921]
[1718725255843,2.12261995,3426.7,3425.5,2.91921]
[1718725256050,0.06127405,3426.6,3425.5,2.91927]
[1718725256367,0.06127405,3426.6,3425.8,2.91901]
[1718725256733,4.51500955,3426.9,3425.7,2.91909]
[1718725256934,0.06127405,3426.5,3425.9,2.91892]
[1718725257171,4.51500955,3426.9,3425.1,2.092]
[1718725257172,1.51500955,3426.9,3426.1,2.91876]
[1718725257344,0.06127405,3426.4,3426.1,2.91876]
[1718725257553,7.34089444,3427.0,3426.2,3.50236]
[1718725257757,0.06149893,3426.3,3426.2,5.83728]
[1718725257929,7.34089444,3427.0,3426.2,2.91867]
[1718725258263,7.34089444,3427.0,3425.9,2.092]
[1718725258264,0.06149893,3426.9,3426.3,2.91859]
[1718725258557,0.06149893,3426.9,3426.6,2.91832]
[1718725258959,7.34089444,3427.4,3426.6,2.91832]
[1718725259159,0.06149893,3426.8,3426.7,2.91825]
[1718725259371,7.34089444,3427.4,3426.8,2.91809]
[1718725259540,7.34089444,3427.4,3426.8,3.793566]
[1718725259743,7.34089444,3427.4,3426.8,0.875476]
[1718725260061,7.34089444,3427.4,3427.0,2.91795]
[1718725260231,7.34089444,3427.4,3426.8,0.875476]
[1718725260572,7.34089444,3427.4,3427.0,2.91797]
[1718725260932,7.34089444,3427.4,3427.0,2.81797]
[1718725261129,7.34089444,3427.4,3427.1,2.97612364]
[1718725261334,7.34089444,3427.4,3427.2,2.91781]
[1718725261569,1.51500955,3428.0,3427.2,2.91781]
[1718725261776,2.12177194,3427.9,3426.8,0.875476]
[1718725261992,1.51500955,3428.1,3427.2,2.91782]
[1718725262203,2.12174202,3428.0,3427.1,2.91787]
[1718725262473,4.51500955,3428.2,3427.2,2.91782]
[1718725262653,2.12173162,3428.1,3427.0,2.91799]
[1718725262834,3.63674117,3428.1,3427.1,2.91791]
[1718725263032,3.0,3428.3,3427.1,2.91791]
[1718725263033,2.12173162,3428.0,3427.2,2.9178]
[1718725263259,1.51500955,3428.2,3427.2,2.9178]
[1718725263456,0.06230076,3427.9,3426.9,0.3793596]
[1718725263647,1.51500955,3428.2,3427.1,2.91789]
[1718725263967,2.18408338,3428.1,3427.2,2.91781]
[1718725264147,2.18408338,3428.1,3427.0,2.91798]
[1718725264342,0.0623457,3428.1,3426.8,0.875476]
[1718725264666,0.66990929,3428.0,3427.1,2.91791]
[1718725264869,0.66990929,3428.0,3426.3,2.91858]
[1718725265085,2.89656251,3427.9,3426.4,3.0]
[1718725265240,2.12183606,3427.8,3426.3,3.0]
[1718725265440,2.12183606,3427.8,3426.4,2.91848]
[1718725265640,0.06228577,3427.7,3426.5,3.0]
[1718725265850,0.32747075,3427.7,3426.1,2.91876]
[1718725266048,2.12206683,3427.6,3426.1,2.91876]
[1718725266349,2.12206683,3427.6,3426.0,6.9456]
[1718725266350,0.06224457,3427.5,3426.0,6.9456]
[1718725266540,2.12206683,3427.4,3426.1,2.91875]
[1718725266740,2.12206683,3427.4,3426.2,2.91867]
[1718725267051,2.40285399,3427.3,3426.2,2.91867]
[1718725267252,0.06220337,3427.3,3426.2,2.91868]
[1718725267457,3.0,3427.8,3425.9,5.01092]
[1718725267646,2.73425621,3427.7,3426.0,5.91885]
[1718725267846,3.0,3427.5,3425.9,2.092]
[1718725268048,5.67224764,3427.4,3425.9,2.092]
[1718725268274,2.18425621,3427.3,3425.9,5.01091]
[1718725268465,2.12224764,3427.2,3426.0,2.91884]
[1718725268651,0.06200857,3427.3,3426.1,2.945222]
[1718725268857,0.06200857,3427.3,3426.6,2.91826]
[1718725269062,3.0,3427.8,3426.8,2.9181]
[1718725269267,0.06193363,3427.2,3426.7,2.092]
[1718725269483,3.0,3427.8,3426.7,2.092]
[1718725269700,3.0,3427.8,3426.8,2.91815]
[1718725270005,2.1838972,3427.7,3426.7,2.092]
[1718725270149,0.06193363,3427.7,3426.7,2.092]
[1718725270347,0.06193363,3427.7,3426.7,5.01024]
[1718725270554,0.06193363,3427.7,3426.9,2.91808]
[1718725270749,0.06193363,3427.7,3427.3,2.91767]
[1718725270983,7.34089444,3428.3,3427.3,2.91767]
[1718725271193,0.06207973,3427.6,3427.4,2.91759]
[1718725271381,7.34089444,3428.3,3427.4,2.91759]
[1718725271699,0.06207973,3428.2,3427.3,2.91774]
[1718725271853,0.06207973,3428.2,3427.4,0.792765]
[1718725272057,7.34089444,3428.3,3427.5,2.91757]
[1718725272359,0.0622258,3428.2,3427.5,2.91757]
[1718725272565,0.0622258,3428.2,3427.9,2.91721]
[1718725272766,7.34089444,3428.8,3427.8,2.91732]
[1718725272962,10.34089444,3429.4,3428.0,2.91714]
[1718725273161,0.0622333,3428.7,3428.2,2.91695]
[1718725273372,3.0,3429.3,3428.0,2.91706]
[1718725273693,0.57434595,3429.2,3428.0,2.91706]
[1718725273848,0.57434595,3429.2,3427.9,2.092]
[1718725274051,0.57434595,3429.2,3428.0,2.91711]
[1718725274275,0.4695828,3429.1,3427.9,2.092]
[1718725274490,0.4695828,3429.1,3428.0,2.91715]
[1718725274654,0.06260397,3429.0,3427.9,2.092]
[1718725274856,0.06260397,3429.0,3428.1,2.91706]
[1718725275168,0.06260397,3429.0,3428.2,2.91694]
[1718725275363,0.06260397,3429.0,3428.1,0.500906]
[1718725275590,0.06260397,3429.0,3428.1,3.417966]
[1718725275754,0.06260397,3429.0,3428.1,6.335026]
[1718725276102,0.06260397,3429.0,3428.2,2.94567045]
[1718725276265,0.06260397,3429.0,3428.3,0.02870961]
[1718725276589,3.0,3429.3,3428.3,0.02870961]
[1718725276785,0.06260397,3428.9,3428.3,0.02870961]
[1718725276985,3.0,3429.3,3428.4,2.91679]
[1718725277305,3.0,3429.3,3428.3,2.092]
[1718725277595,0.06283223,3429.2,3428.3,5.00888]
[1718725277953,0.06283223,3429.2,3428.4,2.9168]
[1718725278154,2.91642,3428.9,3428.5,2.91672]
[1718725278357,0.06283223,3429.2,3428.7,5.00854]
[1718725278589,7.34089444,3429.4,3429.1,2.092]
[1718725278763,2.91595,3429.5,3429.1,2.092]
[1718725278983,2.91613,3429.2,3429.1,2.092]
[1718725279209,3.0,3429.8,3429.1,2.092]
[1718725279397,2.91613,3429.2,3429.1,2.092]
[1718725279803,2.91635,3429.0,3428.5,2.91669]
[1718725280011,2.91622,3429.1,3428.7,2.092]
[1718725280312,2.91656,3428.7,3428.4,2.9168]
[1718725280617,2.91648,3428.8,3428.6,2.092]
[1718725282222,2.91619,3429.2,3428.6,5.00864]
[1718725282406,7.34089444,3429.6,3428.8,2.91646]
[1718725282407,10.25673444,3429.6,3428.8,2.91646]
[1718725282716,2.91606,3429.3,3428.9,2.97468764]
[1718725283018,2.91597,3429.4,3429.0,2.9163]
[1718725283216,2.91564,3429.8,3429.2,2.91612]
[1718725283217,2.91579,3429.6,3429.2,2.91612]
[1718725283387,2.91562,3429.8,3429.3,2.97433169]
[1718725283388,2.91571,3429.7,3429.3,2.97433169]
[1718725283801,2.9158,3429.6,3429.3,0.05831169]
[1718725284031,2.91554,3429.9,3429.5,2.91579]
[1718725284342,2.91565,3429.8,3429.6,0.05830812]
[1718725284619,2.91565,3429.8,3429.0,5.00827]
[1718725284620,2.91552,3430.0,3429.2,2.91611]
[1718725284914,2.9156,3429.9,3429.4,5.00794]
[1718725285081,2.91571,3429.7,3429.2,2.91612]
[1718725285284,2.91579,3429.6,3429.3,2.91604]
[1718725285502,2.91579,3429.6,3429.1,2.91621]
[1718725285503,2.91588,3429.5,3429.2,2.91612]
[1718725285728,7.34089444,3430.6,3428.9,0.52758876]
[1718725285729,2.91621,3429.1,3428.9,0.52758876]
[1718725286032,10.34089444,3430.2,3428.2,2.91695]